bitfinex/quotes_ETHUSD_20240612
["timestamp","ask_amount","ask_price","bid_price","bid_amount"]
[1718225165531,2.3058,3560.6,3558.8,1.689]
[1718225165735,2.3058,3560.6,3558.7,2.052]
[1718225165736,2.3058,3560.6,3559.2,3.741]
[1718225165962,2.3058,3560.6,3559.4,1.689]
[1718225166166,2.3058,3560.6,3559.3,3.3741]
[1718225166327,2.3058,3560.6,3559.3,0.3741]
[1718225166527,2.3058,3560.6,3558.6,0.2811]
[1718225166528,2.3058,3560.6,3558.7,3.0]
[1718225166722,2.3058,3560.6,3558.8,0.5345804]
[1718225166928,2.3058,3560.6,3559.0,2.052]
[1718225167159,2.3058,3560.6,3559.2,1.689]
[1718225167363,2.3058,3560.6,3559.3,0.05617694]
[1718225167527,2.3058,3560.6,3559.5,1.689]
[1718225167733,2.3058,3560.6,3559.6,0.0561722]
[1718225168062,0.005,3562.2,3559.9,1.689]
[1718225168232,2.4615,3562.0,3560.0,0.05616304]
[1718225168435,1.82343965,3561.9,3560.2,1.689]
[1718225168748,1.82343965,3561.9,3560.3,0.05616465]
[1718225169256,1.82343965,3561.9,3560.4,1.689]
[1718225169432,1.82343965,3561.9,3560.5,0.05616149]
[1718225169632,1.82343965,3561.9,3560.4,1.689]
[1718225169856,0.42849397,3561.8,3560.4,1.689]
[1718225170135,1.43344514,3561.7,3560.4,1.689]
[1718225170870,1.43344514,3561.7,3560.2,1.689]
[1718225171569,2.347,3561.4,3560.0,3.0]
[1718225171770,2.052,3561.5,3559.4,0.22773898]
[1718225171771,2.347,3561.2,3559.4,0.22773898]
[1718225171930,1.43344514,3561.1,3559.4,1.91673898]
[1718225174446,2.2605,3561.0,3559.4,1.91673898]
[1718225174646,2.2605,3560.8,3559.2,1.689]
[1718225174954,1.43344514,3560.7,3559.2,1.689]
[1718225175149,2.4402,3560.6,3559.0,3.741]
[1718225175354,1.43344514,3560.5,3559.0,1.689]
[1718225175551,2.4402,3560.4,3558.7,9.512]
[1718225175773,1.82080965,3560.3,3558.8,2.21195379]
[1718225176265,1.82080965,3560.3,3558.9,0.0561878]
[1718225176779,2.4402,3560.4,3559.0,1.689]
[1718225176983,2.4402,3560.4,3559.2,1.689]
[1718225177151,2.4402,3560.4,3559.2,4.689]
[1718225178343,2.4402,3560.4,3559.6,1.689]
[1718225178590,2.4402,3560.4,3559.7,0.05617075]
[1718225178797,2.4402,3560.4,3559.8,0.73588624]
[1718225178965,0.48555204,3562.3,3559.9,1.689]
[1718225178966,2.3788,3561.4,3559.9,1.689]
[1718225179162,2.3788,3561.4,3560.1,1.689]
[1718225179351,3.81224514,3561.4,3560.1,1.689]
[1718225179683,3.81224514,3561.4,3560.2,0.3741]
[1718225182150,1.43344514,3561.3,3560.0,3.0]
[1718225182356,1.43344514,3561.3,3559.8,0.67971707]
[1718225182556,1.43344514,3561.3,3559.8,2.36871707]
[1718225183895,2.318,3561.2,3559.6,3.0]
[1718225184056,1.43344514,3561.1,3559.5,3.0]
[1718225184882,1.43344514,3561.1,3559.6,0.05617896]
[1718225185394,1.43344514,3561.1,3559.5,3.0]
[1718225185592,2.3767,3560.9,3559.6,1.47746759]
[1718225185801,2.3767,3560.7,3559.5,3.0]
[1718225185978,1.43344514,3560.6,3559.5,3.0]
[1718225186374,1.43344514,3560.6,3559.2,0.57367593]
[1718225186789,1.43344514,3560.6,3559.2,5.03752462]
[1718225187099,1.43344514,3560.6,3559.3,4.46384869]
[1718225187302,1.43344514,3560.6,3559.3,0.88980385]
[1718225187303,0.38101451,3560.5,3559.3,0.88980385]
[1718225187597,0.38101451,3560.5,3559.2,0.57367593]
[1718225187598,1.43344514,3560.4,3559.2,0.57367593]
[1718225188129,1.43344514,3560.4,3558.9,8.03367593]
[1718225188130,2.4572,3560.3,3558.9,8.03367593]
[1718225188393,1.43344514,3560.2,3558.9,7.46]
[1718225188600,0.38906451,3560.1,3558.9,7.46]
[1718225188758,3.0072,3560.0,3558.9,7.46]
[1718225188964,1.43344514,3559.9,3558.9,7.46]
[1718225191065,2.3317,3559.8,3558.9,7.46]
[1718225191262,1.43344514,3559.7,3558.1,9.72267593]
[1718225191518,2.329,3559.6,3558.2,2.06558914]
[1718225191721,1.43344514,3559.5,3558.2,0.60124429]
[1718225192018,1.43344514,3559.5,3558.3,1.46431783]
[1718225192234,1.83850665,3559.5,3558.3,0.4328238]
[1718225192439,1.43344514,3559.5,3558.3,0.4328238]
[1718225192581,2.329,3559.6,3558.4,1.689]
[1718225192781,2.329,3559.6,3558.6,1.689]
[1718225192980,2.329,3559.6,3558.6,4.689]
[1718225193224,2.329,3559.6,3558.7,0.4689]
[1718225195651,1.43344514,3559.5,3558.4,3.0]
[1718225195929,1.43344514,3559.5,3558.3,3.4328238]
[1718225196079,2.2835,3559.4,3558.3,3.4328238]
[1718225196284,1.43344514,3559.3,3558.3,3.0]
[1718225196944,2.3475,3559.2,3557.9,3.0]
[1718225197083,1.43344514,3559.1,3557.9,3.0]
[1718225198430,2.3718,3559.0,3557.4,3.0]
[1718225198626,1.81396965,3558.9,3557.8,2.8107]
[1718225198929,2.3718,3559.0,3557.9,3.05620579]
[1718225199086,2.3718,3559.0,3557.9,0.05620579]
[1718225199296,2.3718,3559.0,3558.0,3.0]
[1718225199493,1.43344514,3558.9,3557.6,3.0]
[1718225199697,1.43344514,3558.9,3557.7,0.90587601]
[1718225200636,2.4593,3558.8,3557.6,3.0]
[1718225200835,1.43344514,3558.7,3557.5,1.46241898]
[1718225201219,2.4593,3558.8,3557.5,3.15141898]
[1718225201529,2.4593,3558.8,3557.6,3.0]
[1718225201530,3.89274514,3558.8,3557.6,3.0]
[1718225201727,2.4593,3558.8,3557.7,2.9671419]
[1718225201932,2.4593,3558.8,3557.8,3.0]
[1718225202302,2.4593,3558.8,3557.9,0.05620679]
[1718225203133,4.4466,3560.2,3557.9,0.05620679]
[1718225203339,2.3946,3559.9,3558.0,0.79934487]
[1718225203520,1.43344514,3559.8,3558.1,0.0562011]
[1718225203727,1.43344514,3559.8,3558.2,1.689]
[1718225203936,1.43344514,3559.8,3558.3,0.05619532]
[1718225204236,1.43344514,3559.8,3558.2,4.689]
[1718225204421,1.43344514,3559.8,3558.4,1.689]
[1718225204624,1.43344514,3559.8,3558.4,4.689]
[1718225206021,1.43344514,3559.8,3558.5,0.05619385]
[1718225206202,1.43344514,3559.8,3558.4,4.689]
[1718225206732,1.43344514,3559.8,3558.4,3.0]
[1718225206937,0.38280451,3559.7,3558.4,3.0]
[1718225207102,1.43344514,3559.6,3558.4,3.0]
[1718225207469,1.43344514,3559.6,3558.5,2.10819609]
[1718225207742,2.3946,3559.9,3558.6,1.689]
[1718225207901,2.3946,3559.9,3558.6,3.0]
[1718225208102,0.313926,3559.8,3558.6,3.0]
[1718225208437,0.313926,3559.8,3558.3,0.81140208]
[1718225208613,1.43344514,3559.7,3558.3,3.81140208]
[1718225208946,1.43344514,3559.7,3558.4,0.0561971]
[1718225209116,1.43344514,3559.7,3558.3,0.81140208]
[1718225209297,1.43344514,3559.7,3558.4,0.57785021]
[1718225209298,2.3263,3559.5,3558.4,0.57785021]
[1718225209495,1.43344514,3559.4,3558.1,3.0]
[1718225209701,1.43344514,3559.4,3558.0,3.738]
[1718225209899,1.43344514,3559.4,3558.1,3.0]
[1718225210928,1.43344514,3559.4,3557.9,4.686]
[1718225211336,2.4492,3559.3,3557.8,7.73682147]
[1718225211499,2.4492,3559.1,3557.8,7.46]
[1718225211832,1.43344514,3559.0,3557.8,7.46]
[1718225212503,2.4492,3558.9,3557.8,7.46]
[1718225212709,1.43344514,3558.8,3557.8,7.46]
[1718225212949,1.43344514,3558.8,3557.9,3.0]
[1718225213103,0.38826451,3558.7,3557.9,3.0]
[1718225213302,1.43344514,3558.6,3557.9,3.0]
[1718225213732,1.43344514,3558.6,3557.5,4.46241898]
[1718225214261,2.4492,3558.5,3557.5,4.46241898]
[1718225214543,1.43344514,3558.4,3556.8,9.146]
[1718225214745,1.43344514,3558.4,3556.9,0.05621838]
[1718225216433,1.43344514,3558.4,3557.0,0.05621489]
[1718225216613,1.43344514,3558.4,3557.1,1.686]
[1718225218813,1.43344514,3558.4,3557.2,0.05621488]
[1718225219025,1.43344514,3558.4,3557.3,0.05621329]
[1718225219543,2.4492,3558.5,3557.3,0.05621329]
[1718225219843,2.4492,3558.5,3557.1,1.686]
[1718225219844,3.88264514,3558.5,3557.1,1.686]
[1718225220055,2.4492,3558.5,3557.3,1.686]
[1718225223025,2.4492,3558.5,3557.4,0.05620782]
[1718225223224,2.4492,3558.5,3557.5,1.686]
[1718225223443,2.4492,3558.5,3557.6,0.0562067]
[1718225224552,2.4492,3558.5,3557.5,1.686]
[1718225224765,2.4492,3558.5,3557.5,2.43425532]
[1718225225559,2.4492,3558.5,3557.5,0.74825532]
[1718225225864,3.88264514,3558.5,3557.4,3.0]
[1718225226021,3.88264514,3558.5,3557.3,5.052]
[1718225227625,2.4492,3558.5,3557.3,6.738]
[1718225228938,3.74894514,3558.4,3557.3,3.0]
[1718225229125,2.69039451,3558.3,3557.2,3.0]
[1718225230562,2.3155,3558.3,3557.2,3.0]
[1718225231974,2.3155,3558.3,3557.2,4.686]
[1718225232863,2.3054,3559.4,3558.0,1.686]
[1718225233062,2.3054,3559.4,3558.3,2.052]
[1718225233297,2.3054,3559.4,3558.4,1.95301381]
[1718225233428,2.3054,3559.4,3558.4,2.23411381]
[1718225233630,2.3054,3559.4,3558.8,1.686]
[1718225233834,2.3054,3559.4,3558.8,4.686]
[1718225234740,2.3054,3559.4,3558.8,3.0]
[1718225234943,2.3054,3559.4,3558.9,0.05619546]
[1718225235166,2.3054,3559.4,3558.5,0.05619038]
[1718225235372,2.3054,3559.4,3558.6,2.74223532]
[1718225235531,2.3054,3559.4,3558.7,3.05619042]
[1718225235729,2.3054,3559.4,3558.8,0.05619043]
[1718225236266,2.3054,3559.4,3558.7,3.0]
[1718225237043,2.3054,3559.4,3558.8,0.05619045]
[1718225237251,2.3054,3559.4,3558.9,0.60200915]
[1718225237874,2.3054,3559.4,3558.8,1.686]
[1718225239378,2.3054,3559.4,3558.7,3.0]
[1718225239685,2.3054,3559.4,3558.6,1.277901]
[1718225239846,2.3054,3559.4,3558.4,3.7881667]
[1718225240046,2.3054,3559.4,3558.4,3.21081966]
[1718225240801,2.3054,3559.4,3558.5,1.46421965]
[1718225241081,2.3054,3559.4,3558.4,3.21081966]
[1718225241258,1.43344514,3559.3,3558.4,3.21081966]
[1718225241650,2.3054,3559.4,3558.5,0.98319265]
[1718225242776,2.3054,3559.4,3558.5,0.94195826]
[1718225242978,2.3054,3559.4,3558.4,3.0]
[1718225244177,2.3054,3559.4,3558.5,0.05619725]
[1718225244575,1.43344514,3559.3,3558.4,3.0]
[1718225245256,2.3054,3559.4,3558.4,3.0]
[1718225245590,3.73884514,3559.4,3558.4,3.0]
[1718225245898,4.11272965,3559.4,3558.4,3.0]
[1718225246049,2.3674,3559.2,3558.4,3.0]
[1718225246408,2.3674,3559.0,3558.3,7.46]
[1718225246695,1.43344514,3558.9,3557.8,5.62934704]
[1718225246913,1.43344514,3558.9,3557.9,4.46444853]
[1718225247115,1.43344514,3558.9,3557.9,3.0]
[1718225247406,1.43344514,3558.9,3557.8,5.052]
[1718225247407,1.81352965,3558.9,3557.8,5.052]
[1718225248068,1.81352965,3558.9,3557.9,3.0]
[1718225248355,1.81352965,3558.9,3557.8,2.052]
[1718225248806,1.81352965,3558.9,3557.9,0.05620685]
[1718225249186,1.81352965,3558.9,3557.7,5.62934704]
[1718225249495,1.81352965,3558.9,3557.8,1.46451572]
[1718225249707,1.81352965,3558.9,3557.7,7.61003223]
[1718225249868,1.81352965,3558.9,3557.8,1.46452159]
[1718225250065,1.81352965,3558.9,3557.7,7.61003223]
[1718225250267,1.81352965,3558.9,3557.8,1.4645123]
[1718225250499,1.81352965,3558.9,3557.8,3.40124783]
[1718225250700,1.81352965,3558.9,3557.9,3.05620683]
[1718225250920,1.81352965,3558.9,3557.9,0.05620683]
[1718225251407,1.81352965,3558.9,3557.8,1.93673553]
[1718225251581,1.81352965,3558.9,3557.7,5.62934704]
[1718225251781,1.81352965,3558.9,3557.8,1.46452313]
[1718225251984,1.81352965,3558.9,3557.7,5.052]
[1718225252188,2.491,3558.8,3557.8,1.46456409]
[1718225252386,3.92444514,3558.8,3557.7,3.0]
[1718225252704,2.491,3558.6,3557.6,3.0]
[1718225252884,3.92444514,3558.6,3557.6,3.0]
[1718225254500,1.43344514,3558.3,3557.1,0.57734704]
[1718225254702,2.277,3558.1,3556.8,0.57734704]
[1718225254916,2.277,3557.9,3556.9,1.46485149]
[1718225255226,2.277,3557.9,3556.3,0.57734704]
[1718225255227,1.43344514,3557.6,3556.3,0.57734704]
[1718225255424,1.43344514,3557.6,3556.0,1.15469409]
[1718225255425,2.277,3557.5,3556.0,0.57734704]
[1718225255594,2.2958,3557.3,3556.0,0.57734704]
[1718225255925,1.43344514,3557.2,3555.8,1.686]
[1718225258835,2.2958,3557.3,3555.8,1.686]
[1718225259011,2.2958,3557.3,3556.1,1.686]
[1718225259522,2.2958,3557.3,3556.1,4.686]
[1718225259685,2.2958,3557.3,3556.2,2.3598]
[1718225260095,2.2958,3557.3,3556.3,0.05622914]
[1718225260437,2.2958,3557.3,3556.2,2.3598]
[1718225260885,2.2958,3557.3,3556.3,0.03313348]
[1718225261201,2.2958,3557.3,3556.3,0.05375231]
[1718225261400,2.2958,3557.3,3556.4,0.54135523]
[1718225261716,2.2958,3557.3,3556.4,2.22735523]
[1718225261887,2.2958,3557.3,3556.5,0.05615507]
[1718225262209,2.2958,3557.3,3556.4,2.22735523]
[1718225263386,2.2958,3557.3,3556.5,0.05219846]
[1718225263587,2.2958,3557.3,3556.6,0.52795537]
[1718225263918,2.3523,3558.2,3556.6,2.21395537]
[1718225264113,1.43344514,3558.1,3556.6,2.21395537]
[1718225267742,2.4858,3558.0,3556.6,0.52795537]
[1718225267920,1.43344514,3557.9,3556.6,2.21395537]
[1718225268122,1.43344514,3557.9,3556.7,0.22139554]
[1718225270315,1.43344514,3557.9,3556.6,0.52795537]
[1718225270925,1.43344514,3557.9,3556.6,2.21395537]
[1718225271744,2.2802,3557.8,3556.6,2.21395537]
[1718225272407,2.2802,3557.8,3556.6,0.52795537]
[1718225272920,3.71364514,3557.8,3556.6,2.21395537]
[1718225273121,4.11191965,3557.8,3556.6,2.21395537]
[1718225273542,4.11191965,3557.8,3556.6,0.52795537]
[1718225273746,4.11191965,3557.8,3556.3,3.0]
[1718225273747,2.3716,3557.6,3556.3,3.0]
[1718225274071,2.3716,3557.4,3556.3,3.0]
[1718225274227,2.3716,3557.4,3556.2,3.0]
[1718225274228,3.80504514,3557.4,3556.2,3.0]
[1718225276516,3.80504514,3557.4,3556.1,1.9716966]
[1718225276962,2.3716,3557.4,3556.3,1.686]
[1718225277254,2.3716,3557.4,3556.4,0.40236966]
[1718225278319,3.80504514,3557.4,3556.4,0.40236966]
[1718225278617,3.80504514,3557.4,3556.3,4.686]
[1718225279262,3.80504514,3557.4,3556.1,1.96252925]
[1718225279433,3.80504514,3557.4,3556.1,1.686]
[1718225280264,3.80504514,3557.4,3556.0,1.686]
[1718225280584,2.3259,3557.2,3555.9,4.686]
[1718225280726,4.13527965,3557.2,3556.0,1.4198]
[1718225281558,2.2778,3557.1,3556.0,1.4198]
[1718225282162,2.2778,3557.1,3556.0,4.4198]
[1718225282558,2.3892,3557.9,3556.0,6.68935326]
[1718225282741,1.43344514,3557.8,3556.0,6.68935326]
[1718225282941,2.85945451,3557.7,3556.2,1.686]
[1718225283129,1.43344514,3557.6,3556.2,1.686]
[1718225288149,2.85945451,3557.7,3556.2,7.31601978]
[1718225288348,4.29289965,3557.7,3556.4,1.686]
[1718225288550,1.86273511,3557.6,3556.4,1.686]
[1718225289070,2.3278,3557.5,3556.3,3.0]
[1718225289241,1.43344514,3557.4,3556.0,1.686]
[1718225289445,2.3278,3557.3,3556.0,1.686]
[1718225289755,3.76124514,3557.3,3556.0,1.686]
[1718225290939,1.43344514,3557.2,3555.9,3.57591912]
[1718225291164,2.4755,3557.0,3555.9,3.57591912]
[1718225291328,2.4755,3556.8,3555.9,0.57591912]
[1718225291528,1.43344514,3556.7,3555.9,0.57591912]
[1718225292567,2.4073,3556.6,3555.9,0.57591912]
[1718225292777,1.81751965,3556.5,3555.9,0.57591912]
[1718225293474,2.2762,3556.4,3555.9,0.57591912]
[1718225293676,1.43344514,3556.3,3555.2,7.46]
[1718225294160,1.43344514,3556.3,3555.3,3.0]
[1718225296371,1.43344514,3556.3,3555.2,7.46]
[1718225296546,1.43344514,3556.3,3554.8,2.26191912]
[1718225296547,2.3596,3555.9,3554.8,0.57591912]
[1718225296760,2.3596,3555.9,3554.4,7.46]
[1718225296761,1.43344514,3555.8,3554.6,0.57591912]
[1718225296949,1.43344514,3555.8,3554.4,8.32387869]
[1718225296950,1.43344514,3555.8,3554.4,7.46]
[1718225297459,2.3775,3555.7,3554.4,7.46]
[1718225297774,1.43344514,3555.6,3554.5,0.05626141]
[1718225297973,1.43344514,3555.6,3554.6,0.75162614]
[1718225298386,2.3775,3555.7,3554.6,2.43762614]
[1718225298567,2.3775,3555.7,3554.7,0.05625728]
[1718225298876,2.3718,3556.7,3555.0,3.738]
[1718225299075,0.53718,3556.6,3555.1,0.37942506]
[1718225299377,2.3718,3556.2,3554.8,0.57591912]
[1718225299551,2.3612,3556.0,3554.6,0.57591912]
[1718225299751,1.43344514,3555.9,3554.6,0.57591912]
[1718225299954,1.43344514,3555.9,3554.6,1.46581542]
[1718225300161,1.43344514,3555.9,3554.7,1.46581542]
[1718225300467,1.43344514,3555.9,3554.6,1.686]
[1718225300468,0.37946451,3555.8,3554.6,1.686]
[1718225300908,0.37946451,3555.8,3554.4,7.46]
[1718225300909,2.376,3555.4,3554.4,7.46]
[1718225301176,1.43344514,3555.3,3554.4,7.46]
[1718225302668,2.376,3555.4,3554.5,0.05626593]
[1718225304372,2.3275,3556.1,3554.4,11.198]
[1718225304697,1.43344514,3556.0,3554.6,1.686]
[1718225304875,1.43344514,3556.0,3554.7,1.48167914]
[1718225305066,1.43344514,3556.0,3554.7,1.42542538]
[1718225305455,2.3275,3555.9,3554.5,3.0]
[1718225305686,2.4524,3555.7,3554.5,3.0]
[1718225305994,2.4524,3555.5,3554.4,7.46]
[1718225306192,1.43344514,3555.4,3554.4,7.46]
[1718225309191,2.4356,3556.0,3554.5,0.05626203]
[1718225309402,3.86904514,3556.0,3554.6,2.6062262]
[1718225309696,2.4356,3556.0,3554.6,2.6062262]
[1718225317802,2.4356,3556.0,3554.7,3.05625082]
[1718225318006,2.4356,3556.0,3554.7,3.0]
[1718225318314,2.4356,3556.0,3554.8,0.76582262]
[1718225320096,2.3321,3556.7,3554.9,3.60351067]
[1718225320381,1.43344514,3556.6,3554.9,3.57]
[1718225320606,4.43344514,3556.6,3554.9,3.57]
[1718225320923,4.43344514,3556.6,3555.0,0.73358226]
[1718225320924,2.3321,3556.4,3555.0,0.73358226]
[1718225321073,1.43344514,3556.3,3555.0,0.73358226]
[1718225321272,1.43344514,3556.3,3554.8,0.76582262]
[1718225328480,2.3321,3556.4,3554.8,3.05119179]
[1718225328680,3.76554514,3556.4,3554.9,3.0]
[1718225329701,3.76554514,3556.4,3555.0,1.518]
[1718225329900,1.43344514,3556.3,3555.0,1.518]
[1718225330098,1.43344514,3556.3,3554.9,3.0]
[1718225330099,0.44420997,3556.2,3554.9,3.0]
[1718225330327,1.43344514,3556.1,3554.6,6.01414532]
[1718225330482,1.43344514,3556.1,3554.6,5.4382262]
[1718225331721,1.43344514,3556.1,3554.6,3.9202262]
[1718225331722,2.4984,3556.0,3554.6,3.9202262]
[1718225332025,0.44420997,3556.2,3554.6,3.0]
[1718225332026,2.4984,3555.8,3554.6,3.0]
[1718225332323,1.43344514,3555.7,3554.5,3.0]
[1718225332689,2.4984,3555.6,3554.4,7.46]
[1718225332888,1.82662965,3555.5,3554.4,7.46]
[1718225334725,2.4865,3555.4,3554.0,3.57591912]
[1718225334935,1.43344514,3555.3,3554.1,1.46611741]
[1718225335230,1.43344514,3555.3,3554.0,3.0]
[1718225335426,1.43344514,3555.3,3554.1,1.46619344]
[1718225335728,0.39199451,3555.2,3554.0,3.0]
[1718225335947,2.4865,3555.4,3554.1,1.52243531]
[1718225336217,3.91994514,3555.4,3554.2,1.46616854]
[1718225336437,3.91994514,3555.4,3554.3,1.52234628]
[1718225336588,3.91994514,3555.4,3554.3,0.05626139]
[1718225336784,3.91994514,3555.4,3554.4,1.46605218]
[1718225337136,4.31193965,3555.4,3554.2,0.57591912]
[1718225337296,4.31193965,3555.4,3554.2,2.04197224]
[1718225337496,2.87849451,3555.4,3554.3,1.46605312]
[1718225337730,2.87849451,3555.4,3554.2,0.57591912]
[1718225338025,2.87849451,3555.4,3554.3,2.04198369]
[1718225338222,2.87849451,3555.4,3554.4,1.46606457]
[1718225338524,2.87849451,3555.4,3554.5,1.46606457]
[1718225338889,2.87849451,3555.4,3554.3,0.57591912]
[1718225339224,2.87849451,3555.4,3554.4,0.33945506]
[1718225339523,2.87849451,3555.4,3554.5,1.46605335]
[1718225339708,2.4865,3555.4,3554.5,1.46605335]
[1718225339916,2.4865,3555.4,3554.6,1.46605335]
[1718225340095,2.4865,3555.4,3554.4,0.91537418]
[1718225340291,2.4865,3555.4,3554.5,1.46602742]
[1718225340487,2.4865,3555.4,3554.4,0.91537418]
[1718225340993,2.4865,3555.4,3554.5,1.46603909]
[1718225341194,2.4865,3555.4,3554.6,1.46603576]
[1718225341393,4.16859514,3555.4,3554.4,0.91537418]
[1718225341625,4.16859514,3555.4,3554.5,1.46603729]
[1718225341926,4.16859514,3555.4,3554.6,1.46602812]
[1718225342128,4.16859514,3555.4,3554.4,0.57591912]
[1718225342335,4.16859514,3555.4,3554.5,1.46604397]
[1718225342543,4.16859514,3555.4,3554.4,0.57591912]
[1718225342745,4.16859514,3555.4,3554.4,1.21537092]
[1718225343246,4.16859514,3555.4,3554.5,1.46607755]
[1718225343247,2.052,3555.2,3554.5,1.46607755]
[1718225343409,2.3032,3555.0,3554.1,0.57591912]
[1718225343605,1.43344514,3554.9,3554.0,0.57591912]
[1718225343810,2.3032,3555.0,3554.0,0.57591912]
[1718225343811,0.37366451,3554.8,3554.0,0.57591912]
[1718225344058,2.3032,3555.0,3554.0,0.57591912]
[1718225344340,2.3032,3555.0,3553.7,0.57591912]
[1718225344341,3.73664514,3555.0,3553.7,0.57591912]
[1718225344756,2.3032,3555.0,3553.7,0.57591912]
[1718225344953,2.3032,3555.0,3554.0,3.57]
[1718225345275,2.2808,3555.6,3554.1,5.11005145]
[1718225345407,3.71424514,3555.6,3554.2,1.4662327]
[1718225345602,2.3612,3555.4,3554.1,3.64381875]
[1718225345807,3.79464514,3555.4,3554.1,3.64381875]
[1718225346055,3.79464514,3555.4,3554.1,0.64381875]
[1718225346231,0.37946451,3555.3,3554.2,0.42197379]
[1718225346748,0.37946451,3555.3,3553.9,0.57591912]
[1718225346749,2.3612,3555.1,3553.9,0.57591912]
[1718225346908,1.43344514,3555.0,3553.9,4.46622449]
[1718225347104,1.43344514,3555.0,3553.9,3.0]
[1718225348042,2.3612,3554.9,3553.9,3.0]
[1718225348226,2.3612,3554.9,3553.9,0.44397978]
[1718225348227,2.3552,3554.9,3553.9,0.44397978]
[1718225348442,2.3552,3554.9,3553.8,0.57591912]
[1718225348814,2.3552,3554.9,3553.9,0.57591912]
[1718225349413,2.3552,3554.9,3553.8,0.57591912]
[1718225349614,2.3552,3554.9,3553.8,2.04216664]
[1718225349833,2.3552,3554.9,3553.9,2.63277117]
[1718225350219,2.3552,3554.9,3554.0,1.46624752]
[1718225350552,2.3552,3554.9,3553.9,0.59060453]
[1718225352610,2.476,3555.7,3554.0,0.02861142]
[1718225352814,1.43344514,3555.6,3554.1,0.58811351]
[1718225353049,2.3838,3555.5,3554.1,0.58811351]
[1718225353248,1.43344514,3555.4,3554.1,0.58811351]
[1718225354915,1.43344514,3555.4,3554.2,0.05626102]
[1718225355115,1.43344514,3555.4,3554.1,0.58811351]
[1718225355116,2.3838,3555.5,3554.3,0.05626078]
[1718225355353,3.81724514,3555.5,3554.3,0.05626078]
[1718225355691,2.3838,3555.5,3554.4,2.052]
[1718225355961,2.3378,3556.0,3554.6,0.57591912]
[1718225356112,2.3378,3556.0,3554.6,5.0419673]
[1718225356316,2.3378,3556.0,3554.7,0.57591912]
[1718225356613,2.3378,3556.0,3554.8,1.1620325]
[1718225357013,2.3378,3556.0,3554.9,1.4658126]
[1718225357283,2.3378,3556.0,3554.8,1.73795162]
[1718225357435,2.3378,3556.0,3554.9,1.46580415]
[1718225357634,2.3378,3556.0,3555.0,1.46580415]
[1718225357941,2.3378,3556.0,3555.1,0.32037558]
[1718225358130,2.4001,3556.7,3555.1,0.37662511]
[1718225358471,1.43344514,3556.6,3555.1,0.8962947]
[1718225358766,1.43344514,3556.6,3555.2,1.46573163]
[1718225358931,1.43344514,3556.6,3555.1,3.8962947]
[1718225359131,1.43344514,3556.6,3555.2,2.41029971]
[1718225359465,1.43344514,3556.6,3555.2,0.94461734]
[1718225359666,2.3274,3556.5,3555.2,0.94461734]
[1718225359966,2.3274,3556.5,3555.1,0.32037558]
[1718225359967,1.43344514,3556.4,3555.1,0.32037558]
[1718225360366,2.3274,3556.3,3555.1,0.32037558]
[1718225360568,2.4697,3556.1,3555.1,0.32037558]
[1718225361137,2.4697,3556.1,3555.2,0.05624952]
[1718225361533,2.4697,3556.1,3555.1,0.32037558]
[1718225361736,2.4697,3556.1,3555.2,1.85531029]
[1718225362065,2.4697,3556.1,3555.2,0.38962947]
[1718225365268,2.4035,3557.0,3555.2,0.38962947]
[1718225365452,2.4035,3556.8,3555.2,0.38962947]
[1718225365653,1.43344514,3556.7,3555.2,0.38962947]
[1718225365852,2.11713965,3556.7,3555.3,0.59719242]
[1718225366434,2.11713965,3556.7,3555.4,0.02136087]
[1718225366678,2.11713965,3556.7,3555.4,0.0379218]
[1718225366875,2.11713965,3556.7,3555.3,0.59719242]
[1718225367456,2.11713965,3556.7,3555.4,0.05624271]
[1718225367645,2.11713965,3556.7,3555.3,0.59719242]
[1718225367845,2.11713965,3556.7,3555.4,0.43071975]
[1718225369552,2.11713965,3556.7,3555.5,0.05624272]
[1718225370377,2.11713965,3556.7,3555.4,0.43071975]
[1718225372737,2.11713965,3556.7,3555.5,0.05624273]
[1718225372972,1.43344514,3556.7,3555.9,0.854]
[1718225377178,1.43344514,3556.7,3556.1,0.854]
[1718225379782,2.4035,3556.8,3556.1,0.854]
[1718225380289,2.4035,3556.8,3556.3,0.854]
[1718225380791,2.4035,3556.8,3555.5,3.0]
[1718225380792,2.4035,3556.8,3556.1,0.854]
[1718225387755,2.4035,3556.8,3555.4,3.0]
[1718225387756,0.854,3556.6,3555.4,3.0]
[1718225387981,1.43344514,3556.5,3555.8,0.854]
[1718225388257,0.854,3556.6,3555.8,0.854]
[1718225388258,1.43344514,3556.6,3555.8,0.854]
[1718225389209,3.49785,3556.8,3555.8,0.854]
[1718225389374,1.43344514,3556.7,3555.8,0.854]
[1718225390307,0.49312951,3556.6,3555.8,0.854]
[1718225390505,1.92657465,3556.6,3555.8,0.854]
[1718225394016,3.86474514,3556.5,3555.4,3.0]
[1718225394168,4.71874514,3556.5,3555.6,0.854]
[1718225394375,4.71874514,3556.5,3555.4,3.0]
[1718225394674,0.81688747,3556.4,3555.4,0.854]
[1718225394872,1.43344514,3556.3,3555.4,0.854]
[1718225397226,1.43344514,3556.3,3555.3,6.91119242]
[1718225397374,1.43344514,3556.3,3555.5,0.854]
[1718225397574,0.55356326,3556.2,3555.5,0.854]
[1718225397803,1.9870084,3556.2,3555.5,0.854]
[1718225400381,1.9870084,3556.2,3555.6,1.46560659]
[1718225400607,1.9870084,3556.2,3555.4,0.57591912]
[1718225400805,0.854,3555.9,3555.4,1.46560821]
[1718225401018,0.854,3555.5,3555.1,0.57591912]
[1718225401304,2.28744514,3555.5,3555.0,0.57591912]
[1718225401464,2.28744514,3555.5,3555.1,1.46582258]
[1718225401667,2.28744514,3555.5,3554.6,0.57591912]
[1718225401668,1.43344514,3555.5,3554.7,0.854]
[1718225401867,0.22874451,3555.4,3554.8,1.46601976]
[1718225402103,0.22874451,3555.4,3554.7,0.854]
[1718225402327,2.2571,3555.8,3554.9,0.854]
[1718225402536,2.2571,3555.8,3554.9,0.91025365]